fUST/lending_fUST_20240807
["ID","MTS","AMOUNT","RATE_DAILY","PERIOD"]
[334399083,1723029096597,-663.8,0.00035342,14]
[334399084,1723029096608,-500.0,0.00035342,14]
[334399085,1723029096617,-500.0,0.00035342,14]
[334399086,1723029096627,-500.0,0.00035342,14]
[334399087,1723029096636,-500.0,0.00035342,14]
[334399088,1723029096646,-500.0,0.00035342,14]
[334399089,1723029096656,-610.03,0.00035342,14]
[334399090,1723029096666,-500.0,0.00035342,14]
[334399091,1723029096676,-500.0,0.00035342,14]
[334399092,1723029096686,-1049.44,0.00035342,14]
[334399093,1723029096695,-658.92,0.00035342,14]
[334399094,1723029096705,-634.91,0.00035342,14]
[334399095,1723029096715,-500.0,0.00035342,14]
[334399096,1723029096725,-618.32,0.00035342,14]
[334399097,1723029096735,-841.16,0.00035342,14]
[334399098,1723029096746,-500.0,0.00035342,14]
[334399099,1723029096755,-508.16,0.00035342,14]
[334399100,1723029096766,-543.25,0.00035342,14]
[334399101,1723029096776,-2103.08,0.00035342,14]
[334399102,1723029096786,-500.0,0.00035342,14]
[334399103,1723029096795,-1135.85,0.00035342,14]
[334399104,1723029096805,-500.0,0.00035342,14]
[334399105,1723029096814,-500.0,0.00035342,14]
[334399106,1723029096824,-726.44,0.00035342,14]
[334399107,1723029096834,-606.85,0.00035342,14]
[334399108,1723029096843,-665.91,0.00035342,14]
[334399109,1723029096854,-782.36,0.00035342,14]
[334399110,1723029096864,-500.0,0.00035342,14]
[334399111,1723029096874,-653.76,0.00035342,14]
[334399112,1723029096883,-500.0,0.00035342,14]
[334399113,1723029096893,-500.0,0.00035342,14]
[334399114,1723029096904,-572.65,0.00035342,14]
[334399115,1723029096913,-552.06,0.00035342,14]
[334399116,1723029096923,-723.92,0.00035342,14]
[334399117,1723029096933,-2180.22,0.00035342,14]
[334399118,1723029096942,-531.95,0.00035342,14]
[334399119,1723029096952,-500.0,0.00035342,14]
[334399120,1723029096962,-738.14,0.00035342,14]
[334399121,1723029096971,-500.0,0.00035342,14]
[334399122,1723029096980,-500.0,0.00035342,14]
[334399123,1723029096990,-500.0,0.00035342,14]
[334399124,1723029097005,-500.0,0.00035342,14]
[334399125,1723029097015,-500.0,0.00035342,14]
[334399126,1723029097024,-500.0,0.00035342,14]
[334399127,1723029097034,-561.59,0.00035342,14]
[334399128,1723029097044,-526.38,0.00035342,14]
[334399129,1723029097054,-500.0,0.00035342,14]
[334399130,1723029097065,-655.78,0.00035342,14]
[334399131,1723029097075,-500.0,0.00035342,14]
[334399132,1723029097085,-997.18,0.00035342,14]
[334399133,1723029097095,-1854.37,0.00035342,14]
[334399134,1723029097109,-500.0,0.00035342,14]
[334399135,1723029097120,-200.0,0.00035342,7]
[334399136,1723029097130,-1754.86,0.00035342,14]
[334399137,1723029097140,-637.98,0.00035342,14]
[334399138,1723029097150,-2280.75,0.00035342,14]
[334399139,1723029097159,-524.01,0.00035342,14]
[334399140,1723029097170,-500.0,0.00035342,14]
[334399141,1723029097182,-500.0,0.00035342,14]
[334399142,1723029097191,-214.41798706,0.00035342,14]
[334399143,1723029097200,-528.8,0.00035342,14]
[334399144,1723029097210,-500.0,0.00035342,14]
[334399145,1723029097220,-1498.25,0.00035342,14]
[334399146,1723029097230,-693.96,0.00035342,14]
[334399147,1723029097369,-500.0,0.00035342,14]
[334399148,1723029097378,-500.0,0.00035342,14]
[334399149,1723029097388,-627.54,0.00035342,14]
[334399150,1723029097400,-3342.3,0.00035342,14]
[334399151,1723029097411,-531.99,0.00035342,14]
[334399152,1723029097421,-500.0,0.00035342,14]
[334399153,1723029097431,-1236.8,0.00035342,14]
[334399154,1723029097441,-500.0,0.00035342,14]
[334399155,1723029097453,-728.37,0.00035342,14]
[334399156,1723029097465,-1161.27,0.00035342,14]
[334399157,1723029097476,-500.0,0.00035342,14]
[334399158,1723029097486,-938.86,0.00035342,14]
[334399159,1723029097497,-3031.19,0.00035342,14]
[334399160,1723029097506,-500.0,0.00035342,14]
[334399161,1723029097516,-565.96511922,0.00035342,14]
[334399162,1723029097528,-1919.23,0.00035342,14]
[334399163,1723029097538,-884.22,0.00035342,14]
[334399164,1723029097548,-1075.22,0.00035342,14]
[334399165,1723029097558,-1225.39,0.00035342,14]
[334399166,1723029097568,-799.55,0.00035342,14]
[334399167,1723029097579,-665.15,0.00035342,14]
[334399168,1723029097590,-578.83,0.00035342,14]
[334399169,1723029097600,-500.0,0.00035342,14]
[334399170,1723029097612,-500.0,0.00035342,14]
[334399171,1723029097622,-500.0,0.00035342,14]
[334399172,1723029097634,-1407.14,0.00035342,14]
[334399173,1723029097643,-538.06,0.00035342,14]
[334399174,1723029097652,-500.0,0.00035342,14]
[334399175,1723029097662,-1237.71,0.00035342,14]
[334399176,1723029097672,-3398.02,0.00035342,14]
[334399177,1723029097681,-2584.23,0.00035342,14]
[334399178,1723029097691,-798.6,0.00035342,14]
[334399179,1723029097701,-604.27,0.00035342,14]
[334399180,1723029097710,-500.0,0.00035342,14]
[334399181,1723029097719,-500.0,0.00035342,14]
[334399182,1723029097728,-500.0,0.00035342,2]
[334399183,1723029097738,-500.0,0.00035342,14]
[334399184,1723029097747,-500.0,0.00035342,14]
[334399185,1723029097757,-500.0,0.00035342,14]
[334399186,1723029097766,-1456.08,0.00035342,14]
[334399187,1723029097775,-968.66,0.00035342,14]
[334399188,1723029097785,-500.0,0.00035342,14]
[334399189,1723029097794,-1104.57,0.00035342,14]
[334399190,1723029097804,-785.13,0.00035342,14]
[334399191,1723029097813,-1000.35,0.00035342,14]
[334399192,1723029097823,-678.62,0.00035342,14]
[334399193,1723029097832,-2102.23,0.00035342,14]
[334399194,1723029097842,-1724.83,0.00035342,14]
[334399195,1723029097851,-786.56,0.00035342,14]
[334399196,1723029097862,-1026.47,0.00035342,14]
[334399197,1723029097871,-2410.79,0.00035342,14]
[334399198,1723029097881,-500.0,0.00035342,14]
[334399199,1723029097890,-1027.92,0.00035342,14]
[334399200,1723029097900,-572.28,0.00035342,14]
[334399201,1723029097910,-500.0,0.00035342,14]
[334399202,1723029097919,-827.4,0.00035342,14]
[334399203,1723029097928,-500.0,0.00035342,14]
[334399204,1723029097938,-1638.94,0.00035342,14]
[334399205,1723029097948,-2976.45,0.00035342,14]
[334399206,1723029097957,-728.06,0.00035342,14]
[334399207,1723029097967,-500.0,0.00035342,14]
[334399208,1723029097977,-1275.04,0.00035342,14]
[334399209,1723029097987,-500.0,0.00035342,14]
[334399210,1723029097996,-1187.93,0.00035342,14]
[334399211,1723029098007,-645.93,0.00035342,14]
[334399212,1723029098018,-1020.1,0.00035342,14]
[334399213,1723029098027,-500.0,0.00035342,14]
[334399214,1723029098037,-500.0,0.00035342,14]
[334399215,1723029098047,-581.74,0.00035342,14]
[334399216,1723029098058,-500.0,0.00035342,14]
[334399217,1723029098067,-720.42,0.00035342,14]
[334399218,1723029098077,-923.4,0.00035342,14]
[334399219,1723029098087,-500.0,0.00035342,14]
[334399220,1723029098097,-534.66,0.00035342,14]
[334399221,1723029098107,-671.94,0.00035342,14]
[334399222,1723029098117,-548.72,0.00035342,14]
[334399223,1723029098127,-2664.41,0.00035342,14]
[334399224,1723029098136,-1512.23,0.00035342,14]
[334399225,1723029098145,-1144.37,0.00035342,14]
[334399226,1723029098154,-518.05,0.00035342,14]
[334399227,1723029098164,-1021.34,0.00035342,14]
[334399228,1723029098173,-500.0,0.00035342,14]
[334399229,1723029098183,-2148.85,0.00035342,14]
[334399230,1723029098194,-500.0,0.00035342,14]
[334399231,1723029098205,-1093.31,0.00035342,14]
[334399232,1723029098216,-500.0,0.00035342,14]
[334399233,1723029098226,-2807.44,0.00035342,14]
[334399234,1723029098236,-500.0,0.00035342,14]
[334399235,1723029098247,-500.0,0.00035342,14]
[334399236,1723029098256,-623.65613114,0.00035342,14]
[334399237,1723029098266,-189.20924904,0.00035342,14]
[334399238,1723029098277,-647.5,0.00035342,14]
[334399239,1723029098286,-972.5,0.00035342,14]
[334399240,1723029098296,-2896.75,0.00035342,14]
[334399241,1723029098305,-836.81,0.00035342,14]
[334399242,1723029098314,-621.33,0.00035342,14]
[334399243,1723029098324,-165.55267669,0.00035342,14]
[334399244,1723029098333,-500.0,0.00035342,14]
[334399245,1723029098344,-877.3,0.00035342,14]
[334399246,1723029098355,-646.55,0.00035342,14]
[334399247,1723029098365,-519.26,0.00035342,14]
[334399248,1723029098376,-811.6,0.00035342,14]
[334399249,1723029098386,-3787.31,0.00035342,14]
[334399250,1723029098396,-676.38,0.00035342,14]
[334399251,1723029098407,-1713.3,0.00035342,14]
[334399252,1723029098418,-500.0,0.00035342,14]
[334399253,1723029098428,-710.82,0.00035342,14]
[334399254,1723029098439,-3403.09,0.00035342,14]
[334399255,1723029098448,-500.0,0.00035342,14]
[334399256,1723029098458,-8008.66,0.00035342,14]
[334399257,1723029098468,-1695.73,0.00035342,14]
[334399258,1723029098476,-500.0,0.00035342,14]
[334399259,1723029098486,-2652.65,0.00035342,14]
[334399260,1723029098496,-500.0,0.00035342,14]
[334399261,1723029098507,-676.41,0.00035342,14]
[334399262,1723029098519,-4726.18,0.00035342,14]
[334399263,1723029098530,-631.77,0.00035342,14]
[334399264,1723029098540,-765.56,0.00035342,14]
[334399265,1723029098550,-524.76,0.00035342,14]
[334399266,1723029098560,-584.11438372,0.00035342,14]
[334399267,1723029098570,-500.0,0.00035342,14]
[334399268,1723029098580,-596.92,0.00035342,14]
[334399269,1723029098589,-2772.04,0.00035342,14]
[334399270,1723029098599,-872.47,0.00035342,14]
[334399271,1723029098609,-500.0,0.00035342,14]
[334399272,1723029098619,-500.0,0.00035342,14]
[334399273,1723029098628,-2850.24,0.00035342,14]
[334399274,1723029098638,-2368.38,0.00035342,14]
[334399275,1723029098647,-918.69,0.00035342,14]
[334399276,1723029098657,-1182.98,0.00035342,14]
[334399277,1723029098666,-500.0,0.00035342,14]
[334399278,1723029098677,-787.24,0.00035342,14]
[334399279,1723029098687,-500.0,0.00035342,14]
[334399280,1723029098696,-500.0,0.00035342,14]
[334399281,1723029098706,-500.0,0.00035342,14]
[334399282,1723029098716,-748.79,0.00035342,14]
[334399283,1723029098726,-1732.44,0.00035342,14]
[334399284,1723029098735,-1373.61,0.00035342,14]
[334399285,1723029098745,-500.0,0.00035342,14]
[334399286,1723029098756,-705.51,0.00035342,14]
[334399287,1723029098767,-1008.03,0.00035342,14]
[334399288,1723029098776,-500.0,0.00035342,14]
[334399289,1723029098786,-5624.94,0.00035342,14]
[334399290,1723029098796,-4673.31,0.00035342,14]
[334399291,1723029098806,-2102.82,0.00035342,14]
[334399292,1723029098816,-683.38,0.00035342,14]
[334399293,1723029098825,-500.0,0.00035342,14]
[334399294,1723029098834,-500.0,0.00035342,14]
[334399295,1723029098844,-500.0,0.00035342,14]
[334399296,1723029098853,-500.0,0.00035342,14]
[334399297,1723029098865,-1201.25,0.00035342,14]
[334399298,1723029098876,-5296.6,0.00035342,14]
[334399299,1723029098886,-500.0,0.00035342,14]
[334399300,1723029098895,-500.0,0.00035342,14]
[334399301,1723029098905,-754.45,0.00035342,14]
[334399302,1723029098915,-6120.77,0.00035342,14]
[334399303,1723029098926,-4115.44,0.00035342,14]
[334399304,1723029098936,-500.0,0.00035342,14]
[334399305,1723029098945,-2356.09,0.00035342,14]
[334399306,1723029098954,-1016.46,0.00035342,14]
[334399307,1723029098964,-1373.79,0.00035342,14]
[334399308,1723029098974,-27586.24,0.00035342,14]
[334399309,1723029098984,-641.2,0.00035342,14]
[334399310,1723029098994,-551.11,0.00035342,14]
[334399311,1723029099005,-2059.66,0.00035342,14]
[334399312,1723029099016,-884.77,0.00035342,14]
[334399313,1723029099026,-1858.24,0.00035342,14]
[334399314,1723029099035,-7553.97,0.00035342,14]
[334399315,1723029099046,-6001.15,0.00035342,14]
[334399316,1723029099055,-1904.11,0.00035342,14]
[334399317,1723029099065,-3288.86,0.00035342,14]
[334399318,1723029099075,-577.95,0.00035342,14]
[334399319,1723029099086,-1446.23,0.00035342,14]
[334399320,1723029099096,-4804.12,0.00035342,14]
[334399321,1723029099108,-509.19,0.00035342,14]
[334399322,1723029099117,-873.14,0.00035342,14]
[334399323,1723029099126,-3091.7,0.00035342,14]
[334399324,1723029099136,-743.63,0.00035342,14]
[334399325,1723029099146,-1370.13,0.00035342,14]
[334399326,1723029099155,-18095.21,0.00035342,14]
[334399327,1723029099165,-500.0,0.00035342,14]
[334399328,1723029099174,-1609.93,0.00035342,14]
[334399329,1723029099184,-2388.37,0.00035342,14]
[334399330,1723029099194,-803.5,0.00035342,14]
[334399331,1723029099204,-4013.41,0.00035342,14]
[334399332,1723029099213,-602.9,0.00035342,14]
[334399333,1723029099224,-2364.63,0.00035342,14]
[334399334,1723029099235,-629.6,0.00035342,14]
[334399335,1723029099246,-1184.06,0.00035342,14]
[334399336,1723029099258,-500.0,0.00035342,14]
[334399337,1723029099270,-1150.86,0.00035342,14]
[334399338,1723029099279,-602.76,0.00035342,14]
[334399339,1723029099289,-20279.89,0.00035342,14]
[334399340,1723029099299,-1372.29,0.00035342,14]
[334399341,1723029099309,-500.0,0.00035342,14]
[334399342,1723029099320,-11638.4,0.00035342,14]
[334399343,1723029099330,-500.0,0.00035342,14]
[334399344,1723029099340,-500.0,0.00035342,14]
[334399345,1723029099351,-1433.62,0.00035342,14]
[334399346,1723029099363,-500.0,0.00035342,14]
[334399347,1723029099371,-761.0,0.00035342,14]
[334399348,1723029099381,-1750.38,0.00035342,14]
[334399349,1723029099390,-512.68,0.00035342,14]
[334399350,1723029099400,-746.77,0.00035342,14]
[334399351,1723029099409,-11428.84,0.00035342,14]
[334399352,1723029099420,-1433.26,0.00035342,14]
[334399353,1723029099431,-2496.12,0.00035342,14]
[334399354,1723029099442,-2975.06,0.00035342,14]
[334399355,1723029099454,-2356.96,0.00035342,14]
[334399356,1723029099464,-3825.94,0.00035342,14]
[334399357,1723029099476,-1460.03,0.00035342,14]
[334399358,1723029099487,-620.82574979,0.00035342,14]
[334399359,1723029099497,-1424.73,0.00035342,14]
[334399360,1723029099508,-10865.29,0.00035342,14]
[334399361,1723029099519,-2785.33,0.00035342,14]
[334399362,1723029099530,-500.0,0.00035342,14]
[334399363,1723029099540,-450.86296069,0.00035342,14]
[334399364,1723029099552,-536.47,0.00035342,14]
[334399365,1723029099562,-973.08,0.00035342,14]
[334399366,1723029099574,-795.32,0.00035342,14]
[334399367,1723029099585,-6834.28,0.00035342,14]
[334399368,1723029099710,-500.0,0.00035342,14]
[334399369,1723029099722,-1637.95,0.00035342,14]
[334399370,1723029099732,-500.0,0.00035342,14]
[334399371,1723029099742,-500.0,0.00035342,14]
[334399372,1723029099752,-1190.28,0.00035342,14]
[334399373,1723029099762,-5590.89,0.00035342,14]
[334399374,1723029099772,-2520.26,0.00035342,14]
[334399375,1723029099781,-502.77,0.00035342,14]
[334399376,1723029099790,-1612.65,0.00035342,14]
[334399377,1723029099800,-1790.94,0.00035342,14]
[334399378,1723029099809,-393.17353891,0.00035342,14]
[334399379,1723029099819,-500.0,0.00035342,14]
[334399380,1723029099828,-1565.92,0.00035342,14]
[334399381,1723029099838,-739.25,0.00035342,14]
[334399382,1723029099848,-500.0,0.00035342,14]
[334399383,1723029099857,-728.33,0.00035342,14]
[334399384,1723029099867,-709.69,0.00035342,14]
[334399385,1723029099876,-656.7,0.00035342,14]
[334399386,1723029099886,-2157.08,0.00035342,14]
[334399387,1723029099895,-500.0,0.00035342,14]
[334399388,1723029099905,-2547.19,0.00035342,14]
[334399389,1723029099914,-1757.34,0.00035342,14]
[334399390,1723029099924,-1214.45,0.00035342,14]
[334399391,1723029099933,-1138.49,0.00035342,14]
[334399392,1723029099944,-943.14,0.00035342,14]
[334399393,1723029099954,-814.59,0.00035342,14]
[334399394,1723029099965,-500.0,0.00035342,14]
[334399395,1723029099977,-1713.75,0.00035342,14]
[334399396,1723029099987,-151.0,0.00035452,120]
[334399397,1723029099999,-10000.0,0.000355,30]
[334399398,1723029100009,-817.517819,0.0003556,2]
[334399399,1723029100019,-769.01714,0.0003556,2]
[334399400,1723029100029,-157.673059,0.0003556,2]
[334399401,1723029100039,-179.196639,0.0003556,2]
[334399402,1723029100050,-162.456419,0.0003556,2]
[334399403,1723029100060,-176.508552,0.0003556,2]
[334399404,1723029100069,-159.341654,0.0003556,2]
[334399405,1723029100081,-719.23681,0.0003556,2]
[334399406,1723029100090,-756.969634,0.0003556,2]
[334399407,1723029100101,-1053.34,0.00035616,14]
[334399408,1723029100115,-1009.34,0.00035616,14]
[334399409,1723029100130,-2387.52,0.00035616,14]
[334399410,1723029100140,-500.0,0.00035616,14]
[334399411,1723029100149,-540.78,0.00035616,14]
[334399412,1723029100158,-558.5,0.00035616,14]
[334399413,1723029100168,-2183.56,0.00035616,14]
[334399414,1723029100177,-635.93,0.00035616,14]
[334399415,1723029100188,-614.31,0.00035616,14]
[334399416,1723029100198,-500.0,0.00035616,14]
[334399417,1723029100207,-1090.48,0.00035616,14]
[334399418,1723029100217,-500.0,0.00035616,14]
[334399419,1723029100227,-983.41,0.00035616,14]
[334399420,1723029100236,-1237.41,0.00035616,14]
[334399421,1723029100246,-500.0,0.00035616,14]
[334399422,1723029100256,-901.85,0.00035616,14]
[334399423,1723029100267,-500.0,0.00035616,14]
[334399424,1723029100277,-500.0,0.00035616,14]
[334399425,1723029100287,-705.74,0.00035616,14]
[334399426,1723029100297,-867.95,0.00035616,14]
[334399427,1723029100307,-890.32,0.00035616,14]
[334399428,1723029100318,-500.0,0.00035616,14]
[334399429,1723029100330,-641.8,0.00035616,14]
[334399430,1723029100340,-500.0,0.00035616,14]
[334399431,1723029100351,-663.8,0.00035616,14]
[334399432,1723029100363,-500.0,0.00035616,14]
[334399433,1723029100373,-500.0,0.00035616,14]
[334399434,1723029100384,-500.0,0.00035616,14]
[334399435,1723029100395,-500.0,0.00035616,14]
[334399436,1723029100405,-500.0,0.00035616,14]
[334399437,1723029100417,-610.03,0.00035616,14]
[334399438,1723029100426,-500.0,0.00035616,14]
[334399439,1723029100439,-500.0,0.00035616,14]
[334399440,1723029100450,-1049.44,0.00035616,14]
[334399441,1723029100461,-658.92,0.00035616,14]
[334399442,1723029100473,-634.91,0.00035616,14]
[334399443,1723029100486,-500.0,0.00035616,14]
[334399444,1723029100497,-618.32,0.00035616,14]
[334399445,1723029100507,-841.16,0.00035616,14]
[334399446,1723029100518,-500.0,0.00035616,14]
[334399447,1723029100529,-508.16,0.00035616,14]
[334399448,1723029100539,-543.25,0.00035616,14]
[334399449,1723029100550,-2103.08,0.00035616,14]
[334399450,1723029100561,-331.16554809,0.00035616,14]
[334399451,1723029100571,-1135.85,0.00035616,14]
[334399452,1723029100582,-500.0,0.00035616,14]
[334399453,1723029100592,-601.30080413,0.00035616,14]
[334399454,1723029100603,-726.44,0.00035616,14]
[334399455,1723029100615,-606.85,0.00035616,14]
[334399456,1723029100627,-665.91,0.00035616,14]
[334399457,1723029100637,-782.36,0.00035616,14]
[334399458,1723029100647,-500.0,0.00035616,14]
[334399459,1723029100659,-653.76,0.00035616,14]
[334399460,1723029100670,-500.0,0.00035616,14]
[334399461,1723029100681,-500.0,0.00035616,14]
[334399462,1723029100694,-572.65,0.00035616,14]
[334399463,1723029100704,-552.06,0.00035616,14]
[334399464,1723029100715,-723.92,0.00035616,14]
[334399465,1723029100727,-2180.22,0.00035616,14]
[334399466,1723029100737,-531.95,0.00035616,14]
[334399467,1723029100749,-500.0,0.00035616,14]
[334399468,1723029100759,-738.14,0.00035616,14]
[334399469,1723029100769,-500.0,0.00035616,14]
[334399470,1723029100779,-500.0,0.00035616,14]
[334399471,1723029100789,-500.0,0.00035616,14]
[334399472,1723029100799,-500.0,0.00035616,14]
[334399473,1723029100809,-500.0,0.00035616,14]
[334399474,1723029100819,-500.0,0.00035616,14]
[334399475,1723029100828,-561.59,0.00035616,14]
[334399476,1723029100838,-526.38,0.00035616,14]
[334399477,1723029100848,-369.03558792,0.00035616,14]
[334399478,1723029100861,-655.78,0.00035616,14]
[334399479,1723029100870,-500.0,0.00035616,14]
[334399480,1723029100880,-997.18,0.00035616,14]
[334399481,1723029100890,-1854.37,0.00035616,14]
[334399482,1723029100900,-500.0,0.00035616,14]
[334399483,1723029100910,-200.0,0.00035616,7]
[334399484,1723029100920,-1754.86,0.00035616,14]
[334399485,1723029100930,-637.98,0.00035616,14]
[334399486,1723029100940,-2280.75,0.00035616,14]
[334399487,1723029100950,-524.01,0.00035616,14]
[334399488,1723029100962,-500.0,0.00035616,14]
[334399489,1723029100973,-500.0,0.00035616,14]
[334399490,1723029100985,-528.8,0.00035616,14]
[334399491,1723029100997,-500.0,0.00035616,14]
[334399492,1723029101009,-1498.25,0.00035616,14]
[334399493,1723029101020,-693.96,0.00035616,14]
[334399494,1723029101030,-500.0,0.00035616,14]
[334399495,1723029101041,-500.0,0.00035616,14]
[334399496,1723029101051,-627.54,0.00035616,14]
[334399497,1723029101064,-3342.3,0.00035616,14]
[334399498,1723029101076,-531.99,0.00035616,14]
[334399499,1723029101099,-500.0,0.00035616,14]
[334399500,1723029101110,-1236.8,0.00035616,14]
[334399501,1723029101121,-500.0,0.00035616,14]
[334399502,1723029101131,-728.37,0.00035616,14]
[334399503,1723029101142,-1161.27,0.00035616,14]
[334399504,1723029101153,-500.0,0.00035616,14]
[334399505,1723029101164,-938.86,0.00035616,14]
[334399506,1723029101176,-3031.19,0.00035616,14]
[334399507,1723029101187,-500.0,0.00035616,14]
[334399508,1723029101199,-1919.23,0.00035616,14]
[334399509,1723029101211,-884.22,0.00035616,14]
[334399510,1723029101222,-1075.22,0.00035616,14]
[334399511,1723029101232,-1225.39,0.00035616,14]
[334399512,1723029101244,-799.55,0.00035616,14]
[334399513,1723029101256,-665.15,0.00035616,14]
[334399514,1723029101268,-578.83,0.00035616,14]
[334399515,1723029101279,-500.0,0.00035616,14]
[334399516,1723029101290,-500.0,0.00035616,14]
[334399517,1723029101302,-500.0,0.00035616,14]
[334399518,1723029101312,-1407.14,0.00035616,14]
[334399519,1723029101322,-538.06,0.00035616,14]
[334399520,1723029101331,-500.0,0.00035616,14]
[334399521,1723029101341,-1237.71,0.00035616,14]
[334399522,1723029101351,-3398.02,0.00035616,14]
[334399523,1723029101365,-2584.23,0.00035616,14]
[334399524,1723029101375,-798.6,0.00035616,14]
[334399525,1723029101385,-604.27,0.00035616,14]
[334399526,1723029101395,-500.0,0.00035616,14]
[334399527,1723029101405,-500.0,0.00035616,14]
[334399528,1723029101415,-500.0,0.00035616,2]
[334399529,1723029101427,-553.18178819,0.00035616,14]
[334399530,1723029101440,-500.0,0.00035616,14]
[334399531,1723029101452,-1456.08,0.00035616,14]
[334399532,1723029101462,-500.0,0.00035616,14]
[334399533,1723029101474,-968.66,0.00035616,14]
[334399534,1723029101485,-500.0,0.00035616,14]
[334399535,1723029101495,-1104.57,0.00035616,14]
[334399536,1723029101507,-785.13,0.00035616,14]
[334399537,1723029101519,-1000.35,0.00035616,14]
[334399538,1723029101531,-678.62,0.00035616,14]
[334399539,1723029101542,-2102.23,0.00035616,14]
[334399540,1723029101554,-1724.83,0.00035616,14]
[334399541,1723029101566,-786.56,0.00035616,14]
[334399542,1723029101576,-1026.47,0.00035616,14]
[334399543,1723029101587,-2410.79,0.00035616,14]
[334399544,1723029101600,-500.0,0.00035616,14]
[334399545,1723029101615,-1027.92,0.00035616,14]
[334399546,1723029101626,-572.28,0.00035616,14]
[334399547,1723029101638,-500.0,0.00035616,14]
[334399548,1723029101648,-827.4,0.00035616,14]
[334399549,1723029101660,-500.0,0.00035616,14]
[334399550,1723029101671,-1638.94,0.00035616,14]
[334399551,1723029101683,-2976.45,0.00035616,14]
[334399552,1723029101694,-728.06,0.00035616,14]
[334399553,1723029101704,-455.371433,0.00035616,14]
[334399554,1723029101714,-1275.04,0.00035616,14]
[334399555,1723029101724,-378.32199652,0.00035616,14]
[334399556,1723029101734,-1187.93,0.00035616,14]
[334399557,1723029101744,-645.93,0.00035616,14]
[334399558,1723029101755,-1020.1,0.00035616,14]
[334399559,1723029101766,-500.0,0.00035616,14]
[334399560,1723029101776,-500.0,0.00035616,14]
[334399561,1723029101788,-581.74,0.00035616,14]
[334399562,1723029101798,-500.0,0.00035616,14]
[334399563,1723029101808,-720.42,0.00035616,14]
[334399564,1723029101820,-923.4,0.00035616,14]
[334399565,1723029101831,-500.0,0.00035616,14]
[334399566,1723029101843,-534.66,0.00035616,14]
[334399567,1723029101854,-671.94,0.00035616,14]
[334399568,1723029101865,-548.72,0.00035616,14]
[334399569,1723029101875,-2664.41,0.00035616,14]
[334399570,1723029101885,-1512.23,0.00035616,14]
[334399571,1723029101895,-1144.37,0.00035616,14]
[334399572,1723029102093,-518.05,0.00035616,14]
[334399573,1723029102104,-1021.34,0.00035616,14]
[334399574,1723029102114,-500.0,0.00035616,14]
[334399575,1723029102124,-2148.85,0.00035616,14]
[334399576,1723029102134,-500.0,0.00035616,14]
[334399577,1723029102143,-1093.31,0.00035616,14]
[334399578,1723029102153,-500.0,0.00035616,14]
[334399579,1723029102163,-2807.44,0.00035616,14]
[334399580,1723029102173,-433.36729098,0.00035616,14]
[334399581,1723029102183,-323.3767779,0.00035616,14]
[334399582,1723029102193,-647.5,0.00035616,14]